fUST/lending_fUST_20240607
["ID","MTS","AMOUNT","RATE_DAILY","PERIOD"]
[328680205,1717694849489,-500.0,0.00025479,2]
[328680206,1717694849510,-500.0,0.00025479,2]
[328680207,1717694849531,-500.0,0.00025479,2]
[328680208,1717694849552,-500.0,0.00025479,2]
[328680209,1717694849575,-500.0,0.00025479,2]
[328680210,1717694849596,-500.0,0.00025479,2]
[328680211,1717694849618,-415.3669649,0.00025479,2]
[328680212,1717694849642,-500.0,0.00025479,2]
[328680213,1717694849667,-500.0,0.00025479,2]
[328680214,1717694849689,-500.0,0.00025479,2]
[328680215,1717694849711,-538.69960822,0.00025479,2]
[328680216,1717694849732,-596.69,0.00025479,2]
[328680217,1717694849754,-658.0,0.00025479,2]
[328680218,1717694849777,-500.0,0.00025479,2]
[328680219,1717694849798,-540.34,0.00025479,2]
[328680220,1717694849819,-814.75,0.00025479,2]
[328680221,1717694849840,-500.0,0.00025479,2]
[328680222,1717694849862,-500.0,0.00025479,2]
[328680223,1717694849885,-500.0,0.00025479,2]
[328680224,1717694849913,-500.0,0.00025479,2]
[328680225,1717694849937,-691.33,0.00025479,2]
[328680226,1717694849959,-500.0,0.00025479,2]
[328680227,1717694849979,-573.81,0.00025479,2]
[328680228,1717694850001,-500.0,0.00025479,2]
[328680229,1717694850024,-500.0,0.00025479,2]
[328680230,1717694850046,-500.0,0.00025479,2]
[328680231,1717694850070,-500.0,0.00025479,2]
[328680232,1717694850091,-509.41880858,0.00025479,2]
[328680233,1717694850112,-500.0,0.00025479,2]
[328680234,1717694850135,-500.0,0.00025479,2]
[328680235,1717694850157,-500.0,0.00025479,2]
[328680236,1717694850179,-707.44,0.00025479,2]
[328680237,1717694850200,-500.0,0.00025479,2]
[328680238,1717694850222,-500.0,0.00025479,2]
[328680239,1717694850242,-500.0,0.00025479,2]
[328680240,1717694850262,-622.51051629,0.00025479,2]
[328680241,1717694850283,-1313.02,0.00025479,2]
[328680242,1717694850306,-1959.52,0.00025479,2]
[328680243,1717694850327,-500.0,0.00025479,2]
[328680244,1717694850348,-500.0,0.00025479,2]
[328680245,1717694850369,-500.0,0.00025479,2]
[328680246,1717694850391,-500.0,0.00025479,2]
[328680247,1717694850415,-686.95,0.00025479,2]
[328680248,1717694850436,-500.0,0.00025479,2]
[328680249,1717694850458,-500.0,0.00025479,2]
[328680250,1717694850478,-500.0,0.00025479,2]
[328680251,1717694850499,-500.0,0.00025479,2]
[328680252,1717694850522,-500.0,0.00025479,2]
[328680253,1717694850544,-500.0,0.00025479,2]
[328680254,1717694850567,-2064.59,0.00025479,2]
[328680255,1717694850588,-500.0,0.00025479,2]
[328680256,1717694850609,-500.0,0.00025479,2]
[328680257,1717694850631,-500.0,0.00025479,2]
[328680258,1717694850653,-500.0,0.00025479,2]
[328680259,1717694850678,-500.0,0.00025479,2]
[328680260,1717694850699,-500.0,0.00025479,2]
[328680261,1717694850719,-500.0,0.00025479,2]
[328680262,1717694850747,-7825.9,0.00025479,2]
[328680263,1717694850772,-913.26,0.00025479,2]
[328680264,1717694850796,-500.0,0.00025479,2]
[328680265,1717694850819,-5055.15,0.00025479,2]
[328680266,1717694850840,-444.86908608,0.00025479,2]
[328680267,1717694850861,-496.35548321,0.00025479,2]
[328680268,1717694850882,-500.0,0.00025479,2]
[328680269,1717694850903,-500.0,0.00025479,2]
[328680270,1717694850928,-2108.41,0.00025479,2]
[328680271,1717694850950,-500.0,0.00025479,2]
[328680272,1717694850971,-500.0,0.00025479,2]
[328680273,1717694850999,-500.0,0.00025479,2]
[328680274,1717694851023,-500.0,0.00025479,2]
[328680275,1717694851048,-500.0,0.00025479,2]
[328680276,1717694851069,-500.0,0.00025479,2]
[328680277,1717694851091,-898.08,0.00025479,2]
[328680278,1717694851113,-500.0,0.00025479,2]
[328680279,1717694851138,-500.0,0.00025479,2]
[328680280,1717694851162,-1047.9,0.00025479,2]
[328680281,1717694851183,-500.0,0.00025479,2]
[328680282,1717694851208,-500.0,0.00025479,2]
[328680283,1717694851231,-500.0,0.00025479,2]
[328680284,1717694851252,-500.0,0.00025479,2]
[328680285,1717694851277,-500.0,0.00025479,2]
[328680286,1717694851304,-785.46,0.00025479,2]
[328680287,1717694851326,-500.0,0.00025479,2]
[328680288,1717694851347,-500.0,0.00025479,2]
[328680289,1717694851368,-500.0,0.00025479,2]
[328680290,1717694851392,-6217.62,0.00025479,2]
[328680291,1717694851414,-500.0,0.00025479,2]
[328680292,1717694851436,-500.0,0.00025479,2]
[328680293,1717694851458,-500.0,0.00025479,2]
[328680294,1717694851478,-500.0,0.00025479,2]
[328680295,1717694851499,-500.0,0.00025479,2]
[328680296,1717694851520,-500.0,0.00025479,2]
[328680297,1717694851542,-5114.64,0.00025479,2]
[328680298,1717694851563,-154.1929966,0.00025479,2]
[328680299,1717694851583,-500.0,0.00025479,2]
[328680300,1717694851604,-500.0,0.00025479,2]
[328680301,1717694851627,-500.0,0.00025479,2]
[328680302,1717694851651,-776.7,0.00025479,2]
[328680303,1717694851673,-500.0,0.00025479,2]
[328680304,1717694851695,-500.0,0.00025479,2]
[328680305,1717694851716,-500.0,0.00025479,2]
[328680306,1717694851738,-500.0,0.00025479,2]
[328680307,1717694851760,-1978.67,0.00025479,2]
[328680308,1717694851781,-500.0,0.00025479,2]
[328680309,1717694851803,-1093.81,0.00025479,2]
[328680310,1717694851827,-500.0,0.00025479,2]
[328680311,1717694851852,-752.47,0.00025479,2]
[328680312,1717694851877,-1480.15,0.00025479,2]
[328680313,1717694851901,-500.0,0.00025479,2]
[328680314,1717694851926,-500.0,0.00025479,2]
[328680315,1717694851950,-520.84,0.00025479,2]
[328680316,1717694851972,-500.0,0.00025479,2]
[328680317,1717694851997,-500.0,0.00025479,2]
[328680318,1717694852022,-961.47,0.00025479,2]
[328680319,1717694852048,-760.53,0.00025479,2]
[328680320,1717694852070,-500.0,0.00025479,2]
[328680321,1717694852091,-500.0,0.00025479,2]
[328680322,1717694852118,-4568.37,0.00025479,2]
[328680323,1717694852144,-542.93,0.00025479,2]
[328680324,1717694852166,-500.0,0.00025479,2]
[328680325,1717694852189,-154.9690062,0.00025498,2]
[328680326,1717694852214,-283.03538923,0.00025498,2]
[328680327,1717694852238,-19070.0358948,0.00025499,2]
[328680328,1717694852263,-151.0,0.00025499,7]
[328680329,1717694852287,-26753.48228261,0.000255,60]
[328680330,1717694853029,-500.0,0.00024657,2]
[328680331,1717694853053,-3411.62,0.00024657,2]
[328680332,1717694853076,-500.0,0.00024931,2]
[328680333,1717694853100,-3411.62,0.00024931,2]
[328680334,1717694853121,-500.0,0.00025205,2]
[328680335,1717694853146,-3411.62,0.00025205,2]
[328680336,1717694853167,-532.33578355,0.00025479,2]
[328680337,1717694853192,-3411.62,0.00025479,2]
[328680338,1717694853215,-101459.10885645,0.000255,60]
[328680339,1717694853348,-154215.80515243,0.000255,60]
[328680340,1717694853374,-877.89529555,0.000255,2]
[328680341,1717694853395,-1463.26839664,0.000255,2]
[328680342,1717694853417,-151.0,0.000255,2]
[328680343,1717694853439,-2731.18,0.000257,3]
[328680344,1717694853459,-2731.18,0.000257,3]
[328680345,1717694853480,-2731.18,0.000257,3]
[328680346,1717694853500,-2731.18,0.000257,3]
[328680347,1717694853521,-2731.18,0.000257,3]
[328680348,1717694853543,-2731.18,0.000257,3]
[328680349,1717694853563,-2731.18,0.000257,3]
[328680350,1717694853585,-2731.18,0.000257,3]
[328680351,1717694853607,-2731.18,0.000257,3]
[328680352,1717694853628,-2731.18,0.000257,3]
[328680353,1717694853648,-2731.18,0.000257,3]
[328680354,1717694853670,-2731.18,0.000257,3]
[328680355,1717694853691,-2731.18,0.000257,3]
[328680356,1717694853713,-2731.18,0.000257,3]
[328680357,1717694853734,-2731.18,0.000257,3]
[328680358,1717694853755,-2731.18,0.000257,3]
[328680359,1717694853777,-2731.18,0.000257,3]
[328680360,1717694853800,-2731.18,0.000257,3]
[328680361,1717694853820,-2731.18,0.000257,3]
[328680362,1717694853841,-2731.18,0.000257,3]
[328680363,1717694853862,-500.0,0.00025753,2]
[328680364,1717694853882,-500.0,0.00025753,2]
[328680365,1717694853904,-500.0,0.00025753,2]
[328680366,1717694853924,-500.0,0.00025753,2]
[328680367,1717694853945,-500.0,0.00025753,2]
[328680368,1717694853966,-500.0,0.00025753,2]
[328680369,1717694853986,-728.57,0.00025753,2]
[328680370,1717694854007,-500.0,0.00025753,2]
[328680371,1717694854027,-500.0,0.00025753,2]
[328680372,1717694854049,-500.0,0.00025753,2]
[328680373,1717694854071,-511.25418885,0.00025753,2]
[328680374,1717694854093,-500.0,0.00025753,2]
[328680375,1717694854115,-500.0,0.00025753,2]
[328680376,1717694854140,-500.0,0.00025753,2]
[328680377,1717694854162,-500.0,0.00025753,2]
[328680378,1717694854186,-500.0,0.00025753,2]
[328680379,1717694854208,-293.94099353,0.00025753,2]
[328680380,1717694854231,-500.0,0.00025753,2]
[328680381,1717694854253,-500.0,0.00025753,2]
[328680382,1717694854275,-500.0,0.00025753,2]
[328680383,1717694854300,-2032.64,0.00025753,2]
[328680384,1717694854321,-200.0,0.00025753,2]
[328680385,1717694854343,-500.0,0.00025753,2]
[328680386,1717694854365,-500.0,0.00025753,2]
[328680387,1717694854388,-500.0,0.00025753,2]
[328680388,1717694854411,-500.0,0.00025753,2]
[328680389,1717694854432,-510.72708811,0.00025753,2]
[328680390,1717694854456,-500.0,0.00025753,2]
[328680391,1717694854477,-508.33945223,0.00025753,2]
[328680392,1717694854497,-151.0,0.00025753,2]
[328680393,1717694854519,-151.0,0.00025753,2]
[328680394,1717694854540,-1666.69,0.00025753,2]
[328680395,1717694854561,-500.0,0.00025753,2]
[328680396,1717694854583,-500.0,0.00025753,2]
[328680397,1717694854604,-500.0,0.00025753,2]
[328680398,1717694854625,-500.0,0.00025753,2]
[328680399,1717694854644,-500.0,0.00025753,2]
[328680400,1717694854666,-500.0,0.00025753,2]
[328680401,1717694854686,-500.0,0.00025753,2]
[328680402,1717694854707,-500.0,0.00025753,2]
[328680403,1717694854728,-1217.77,0.00025753,2]
[328680404,1717694854748,-500.0,0.00025753,2]
[328680405,1717694854770,-500.0,0.00025753,2]
[328680406,1717694854793,-500.0,0.00025753,2]
[328680407,1717694854813,-531.71951726,0.00025753,2]
[328680408,1717694854834,-500.0,0.00025753,2]
[328680409,1717694854855,-500.0,0.00025753,2]
[328680410,1717694854875,-500.0,0.00025753,2]
[328680411,1717694854895,-500.0,0.00025753,2]
[328680412,1717694854916,-500.0,0.00025753,2]
[328680413,1717694854936,-875.41,0.00025753,2]
[328680414,1717694854956,-518.80000005,0.00025753,2]
[328680415,1717694854976,-552.59,0.00025753,2]
[328680416,1717694854997,-500.0,0.00025753,2]
[328680417,1717694855017,-500.0,0.00025753,2]
[328680418,1717694855037,-500.0,0.00025753,2]
[328680419,1717694855060,-500.0,0.00025753,2]
[328680420,1717694855080,-500.0,0.00025753,2]
[328680421,1717694855101,-500.0,0.00025753,2]
[328680422,1717694855121,-505.31139338,0.00025753,2]
[328680423,1717694855147,-162.96804827,0.00025753,2]
[328680424,1717694855167,-500.0,0.00025753,2]
[328680425,1717694855188,-500.0,0.00025753,2]
[328680426,1717694855210,-596.69,0.00025753,2]
[328680427,1717694855230,-658.0,0.00025753,2]
[328680428,1717694855249,-500.0,0.00025753,2]
[328680429,1717694855269,-540.34,0.00025753,2]
[328680430,1717694855293,-814.75,0.00025753,2]
[328680431,1717694855314,-500.0,0.00025753,2]
[328680432,1717694855335,-500.0,0.00025753,2]
[328680433,1717694855355,-500.0,0.00025753,2]
[328680434,1717694855376,-500.0,0.00025753,2]
[328680435,1717694855397,-691.33,0.00025753,2]
[328680436,1717694855418,-500.0,0.00025753,2]
[328680437,1717694855438,-573.81,0.00025753,2]
[328680438,1717694855458,-500.0,0.00025753,2]
[328680439,1717694855479,-500.0,0.00025753,2]
[328680440,1717694855499,-500.0,0.00025753,2]
[328680441,1717694855521,-500.0,0.00025753,2]
[328680442,1717694855543,-500.0,0.00025753,2]
[328680443,1717694855563,-500.0,0.00025753,2]
[328680444,1717694855584,-500.0,0.00025753,2]
[328680445,1717694855604,-707.44,0.00025753,2]
[328680446,1717694855626,-500.0,0.00025753,2]
[328680447,1717694855648,-500.0,0.00025753,2]
[328680448,1717694855669,-1313.02,0.00025753,2]
[328680449,1717694855690,-500.0,0.00025753,2]
[328680450,1717694855710,-500.0,0.00025753,2]
[328680451,1717694855730,-500.0,0.00025753,2]
[328680452,1717694855874,-500.0,0.00025753,2]
[328680453,1717694855895,-512.23400796,0.00025753,2]
[328680454,1717694855916,-500.0,0.00025753,2]
[328680455,1717694855936,-500.0,0.00025753,2]
[328680456,1717694855957,-500.0,0.00025753,2]
[328680457,1717694855978,-500.0,0.00025753,2]
[328680458,1717694855998,-500.0,0.00025753,2]
[328680459,1717694856020,-2064.59,0.00025753,2]
[328680460,1717694856044,-500.0,0.00025753,2]
[328680461,1717694856064,-500.0,0.00025753,2]
[328680462,1717694856086,-500.0,0.00025753,2]
[328680463,1717694856108,-500.0,0.00025753,2]
[328680464,1717694856129,-500.0,0.00025753,2]
[328680465,1717694856155,-500.0,0.00025753,2]
[328680466,1717694856177,-500.0,0.00025753,2]
[328680467,1717694856201,-7825.9,0.00025753,2]
[328680468,1717694856223,-913.26,0.00025753,2]
[328680469,1717694856245,-500.0,0.00025753,2]
[328680470,1717694856269,-5055.15,0.00025753,2]
[328680471,1717694856289,-500.0,0.00025753,2]
[328680472,1717694856311,-500.0,0.00025753,2]
[328680473,1717694856335,-2108.41,0.00025753,2]
[328680474,1717694856358,-500.0,0.00025753,2]
[328680475,1717694856378,-500.0,0.00025753,2]
[328680476,1717694856401,-500.0,0.00025753,2]
[328680477,1717694856422,-500.0,0.00025753,2]
[328680478,1717694856443,-500.0,0.00025753,2]
[328680479,1717694856464,-500.0,0.00025753,2]
[328680480,1717694856488,-898.08,0.00025753,2]
[328680481,1717694856512,-500.0,0.00025753,2]
[328680482,1717694856535,-500.0,0.00025753,2]
[328680483,1717694856556,-1047.9,0.00025753,2]
[328680484,1717694856580,-500.0,0.00025753,2]
[328680485,1717694856605,-500.0,0.00025753,2]
[328680486,1717694856628,-500.0,0.00025753,2]
[328680487,1717694856649,-500.0,0.00025753,2]
[328680488,1717694856670,-500.0,0.00025753,2]
[328680489,1717694856694,-785.46,0.00025753,2]
[328680490,1717694856715,-500.0,0.00025753,2]
[328680491,1717694856736,-503.23688961,0.00025753,2]
[328680492,1717694856757,-500.0,0.00025753,2]
[328680493,1717694856780,-6217.62,0.00025753,2]
[328680494,1717694856803,-500.0,0.00025753,2]
[328680495,1717694856823,-500.0,0.00025753,2]
[328680496,1717694856845,-500.0,0.00025753,2]
[328680497,1717694856865,-500.0,0.00025753,2]
[328680498,1717694856890,-500.0,0.00025753,2]
[328680499,1717694856912,-500.0,0.00025753,2]
[328680500,1717694856934,-5114.64,0.00025753,2]
[328680501,1717694856958,-500.0,0.00025753,2]
[328680502,1717694856980,-500.0,0.00025753,2]
[328680503,1717694857001,-500.0,0.00025753,2]
[328680504,1717694857026,-776.7,0.00025753,2]
[328680505,1717694857048,-500.0,0.00025753,2]
[328680506,1717694857070,-500.0,0.00025753,2]
[328680507,1717694857091,-500.0,0.00025753,2]
[328680508,1717694857114,-500.0,0.00025753,2]
[328680509,1717694857140,-1978.67,0.00025753,2]
[328680510,1717694857162,-454.39323364,0.00025753,2]
[328680511,1717694857183,-1093.81,0.00025753,2]
[328680512,1717694857205,-500.0,0.00025753,2]
[328680513,1717694857227,-752.47,0.00025753,2]
[328680514,1717694857249,-1480.15,0.00025753,2]
[328680515,1717694857269,-500.0,0.00025753,2]
[328680516,1717694857292,-500.0,0.00025753,2]
[328680517,1717694857313,-520.84,0.00025753,2]
[328680518,1717694857333,-500.0,0.00025753,2]
[328680519,1717694857358,-500.0,0.00025753,2]
[328680520,1717694857379,-961.47,0.00025753,2]
[328680521,1717694857400,-760.53,0.00025753,2]
[328680522,1717694857421,-500.0,0.00025753,2]
[328680523,1717694857442,-500.0,0.00025753,2]
[328680524,1717694857467,-4568.37,0.00025753,2]
[328680525,1717694857489,-542.93,0.00025753,2]
[328680526,1717694857509,-500.0,0.00025753,2]
[328680527,1717694857533,-3411.62,0.00025753,2]
[328680528,1717694857554,-211.17410606,0.00025786,3]
[328680529,1717694857574,-4000.44972203,0.000258,3]
[328680530,1717694857594,-5081.7934626,0.000259,2]
[328680531,1717694857615,-160.0,0.00025941,5]
[328680532,1717694857635,-12631.8013418,0.0002599,2]
[328680581,1717695032886,-225.05706064,0.00024657,2]
[328680583,1717695032896,-500.0,0.00024657,2]
[328680585,1717695032905,-1609.18,0.00024657,2]
[328680587,1717695032915,-312.77155645,0.00024657,2]
[328680589,1717695032924,-500.0,0.00024657,2]
[328680591,1717695032937,-500.0,0.00024657,2]
[328680593,1717695032947,-500.0,0.00024657,2]
[328680595,1717695032956,-500.0,0.00024657,2]
[328680597,1717695032966,-1634.46,0.00024657,2]
[328680600,1717695032976,-500.0,0.00024657,2]
[328680601,1717695032986,-500.0,0.00024657,2]
[328680604,1717695032996,-507.39961971,0.00024657,2]
[328680605,1717695033005,-6195.51,0.00024657,2]
[328680607,1717695033014,-414.13142686,0.00024657,2]
[328680609,1717695033024,-500.0,0.00024657,2]
[328680611,1717695033034,-500.0,0.00024657,2]
[328680613,1717695033043,-500.0,0.00024657,2]
[328680615,1717695033053,-4001.99,0.00024657,2]
[328680617,1717695033062,-500.0,0.00024657,2]
[328680619,1717695033071,-1669.15,0.00024657,2]
[328680621,1717695033080,-500.0,0.00024657,2]
[328680622,1717695033090,-576.78,0.00024657,2]
[328680623,1717695033100,-500.0,0.00024657,2]
[328680624,1717695033110,-500.0,0.00024657,2]
[328680625,1717695033119,-500.0,0.00024657,2]
[328680626,1717695033129,-4922.28,0.00024657,2]
[328680627,1717695033139,-500.0,0.00024657,2]
[328680628,1717695033148,-500.0,0.00024657,2]
[328680629,1717695033158,-245.4416393,0.00024657,2]
[328680630,1717695033167,-500.0,0.00024657,2]
[328680631,1717695033177,-376.39112231,0.00024657,2]
[328680632,1717695033189,-500.0,0.00024657,2]
[328680633,1717695033201,-500.0,0.00024657,2]
[328680634,1717695033211,-500.0,0.00024657,2]
[328680635,1717695033221,-458.82876536,0.00024657,2]
[328680636,1717695033234,-156.06123464,0.00024657,2]
[328680637,1717695033244,-500.0,0.00024657,2]
[328680638,1717695033254,-500.0,0.00024657,2]
[328680639,1717695033264,-964.06,0.00024657,2]
[328680640,1717695033274,-500.0,0.00024657,2]
[328680641,1717695033285,-4049.09,0.00024657,2]
[328680642,1717695033294,-567.38554957,0.00024657,2]
[328680643,1717695033304,-595.71,0.00024657,2]
[328680644,1717695033314,-500.0,0.00024657,2]
[328680645,1717695033325,-500.0,0.00024657,2]
[328680646,1717695033334,-500.0,0.00024657,2]
[328680647,1717695033344,-500.0,0.00024657,2]
[328680648,1717695033354,-500.0,0.00024657,2]
[328680649,1717695033364,-1566.44,0.00024657,2]
[328680650,1717695033374,-865.93,0.00024657,2]
[328680651,1717695033383,-478.77373726,0.00024657,2]
[328680652,1717695033394,-602.09,0.00024657,2]
[328680653,1717695033404,-897.86598454,0.00024831,2]
[328680654,1717695033414,-710.98,0.0002493,2]
[328680655,1717695033424,-500.0,0.0002493,2]
[328680656,1717695033433,-621.82,0.0002493,2]
[328680657,1717695033443,-500.0,0.0002493,2]
[328680658,1717695033453,-500.0,0.0002493,2]
[328680659,1717695033463,-500.0,0.0002493,2]
[328680660,1717695033473,-500.0,0.0002493,2]
[328680661,1717695033482,-500.0,0.0002493,2]
[328680662,1717695033492,-500.0,0.0002493,2]
[328680663,1717695033501,-500.0,0.00024931,2]
[328680664,1717695033510,-1609.18,0.00024931,2]
[328680665,1717695033520,-500.0,0.00024931,2]
[328680666,1717695033530,-259.67689488,0.00024931,2]
[328680667,1717695033540,-500.0,0.00024931,2]
[328680668,1717695033549,-500.0,0.00024931,2]
[328680669,1717695033559,-1634.46,0.00024931,2]
[328680670,1717695033569,-500.0,0.00024931,2]
[328680671,1717695033579,-500.0,0.00024931,2]
[328680672,1717695033588,-6195.51,0.00024931,2]
[328680673,1717695033599,-500.0,0.00024931,2]
[328680674,1717695033609,-500.0,0.00024931,2]
[328680675,1717695033619,-500.0,0.00024931,2]
[328680676,1717695033628,-4001.99,0.00024931,2]
[328680677,1717695033638,-500.0,0.00024931,2]
[328680678,1717695033647,-1669.15,0.00024931,2]
[328680679,1717695033657,-528.8684646,0.00024931,2]
[328680680,1717695033666,-576.78,0.00024931,2]
[328680681,1717695033676,-500.0,0.00024931,2]
[328680682,1717695033686,-500.0,0.00024931,2]
[328680683,1717695033696,-396.84229943,0.00024931,2]
[328680684,1717695033706,-4922.28,0.00024931,2]
[328680685,1717695033716,-500.0,0.00024931,2]
[328680686,1717695033727,-500.0,0.00024931,2]
[328680687,1717695033736,-500.0,0.00024931,2]
[328680688,1717695033746,-644.83861826,0.00024931,2]
[328680689,1717695033757,-500.0,0.00024931,2]
[328680690,1717695033767,-500.0,0.00024931,2]
[328680691,1717695033777,-614.89,0.00024931,2]
[328680692,1717695033786,-500.0,0.00024931,2]
[328680693,1717695033795,-500.0,0.00024931,2]
[328680694,1717695033804,-964.06,0.00024931,2]
[328680695,1717695033814,-316.22241625,0.00024931,2]
[328680696,1717695033823,-4049.09,0.00024931,2]
[328680697,1717695033832,-595.71,0.00024931,2]
[328680698,1717695033842,-500.0,0.00024931,2]
[328680699,1717695033851,-500.0,0.00024931,2]
[328680700,1717695033861,-500.0,0.00024931,2]
[328680701,1717695033870,-500.0,0.00024931,2]
[328680702,1717695033880,-500.0,0.00024931,2]
[328680703,1717695033889,-1566.44,0.00024931,2]
[328680704,1717695033899,-865.93,0.00024931,2]
[328680705,1717695033908,-602.09,0.00024931,2]
[328680706,1717695033918,-401.88954213,0.00025126,2]
[328680707,1717695033928,-897.86598448,0.00025127,2]
[328680708,1717695033938,-17818.97798283,0.00025194,3]
[328680719,1717695038877,-1171.78,0.00024657,2]
[328680720,1717695038887,-500.0,0.00024657,2]
[328680721,1717695038898,-500.0,0.0002493,2]
[328680723,1717695038908,-1171.78,0.00024931,2]
[328680725,1717695038918,-500.0,0.00024931,2]
[328680727,1717695038928,-1912.43201717,0.00025194,3]
[328680729,1717695038939,-158.34339954,0.00025203,2]
[328680731,1717695038951,-248.57669724,0.00025203,2]
[328680733,1717695038961,-710.98,0.00025204,2]
[328680735,1717695038971,-225.60788605,0.00025204,2]
[328680740,1717695039712,-8.74057933,0.00025204,2]
[328680741,1717695039729,-265.65153462,0.00025204,2]
[328680742,1717695039740,-621.82,0.00025204,2]
[328680743,1717695039749,-500.0,0.00025204,2]
[328680744,1717695039760,-500.0,0.00025204,2]
[328680745,1717695039770,-500.0,0.00025204,2]
[328680746,1717695039780,-500.0,0.00025204,2]
[328680747,1717695039790,-500.0,0.00025204,2]
[328680748,1717695039800,-500.0,0.00025204,2]
[328680749,1717695039810,-500.0,0.00025204,2]
[328680750,1717695039822,-500.0,0.00025205,2]
[328680751,1717695039833,-1609.18,0.00025205,2]
[328680752,1717695039843,-500.0,0.00025205,2]
[328680753,1717695039854,-500.0,0.00025205,2]
[328680754,1717695039864,-500.0,0.00025205,2]
[328680755,1717695039875,-1634.46,0.00025205,2]
[328680756,1717695039885,-500.0,0.00025205,2]
[328680757,1717695039895,-500.0,0.00025205,2]
[328680758,1717695039905,-6195.51,0.00025205,2]
[328680759,1717695039916,-151.0,0.00025205,2]
[328680760,1717695039926,-300.732448,0.00025205,2]
[328680761,1717695039936,-500.0,0.00025205,2]
[328680762,1717695039947,-500.0,0.00025205,2]
[328680763,1717695039957,-281.04443918,0.00025205,2]
[328680764,1717695039967,-4001.99,0.00025205,2]
[328680765,1717695039977,-500.0,0.00025205,2]
[328680766,1717695039987,-1669.15,0.00025205,2]
[328680767,1717695039998,-576.78,0.00025205,2]
[328680768,1717695040008,-542.28013208,0.00025205,2]
[328680769,1717695040019,-500.0,0.00025205,2]
[328680770,1717695040029,-4922.28,0.00025205,2]
[328680771,1717695040040,-500.0,0.00025205,2]
[328680772,1717695040051,-649.64936738,0.00025205,2]
[328680773,1717695040063,-500.0,0.00025205,2]
[328680774,1717695040073,-500.0,0.00025205,2]
[328680775,1717695040084,-500.0,0.00025205,2]
[328680776,1717695040094,-614.89,0.00025205,2]
[328680777,1717695040104,-500.0,0.00025205,2]
[328680778,1717695040114,-500.0,0.00025205,2]
[328680779,1717695040125,-964.06,0.00025205,2]
[328680780,1717695040135,-4049.09,0.00025205,2]
[328680782,1717695040146,-595.71,0.00025205,2]
[328680783,1717695040157,-500.0,0.00025205,2]
[328680785,1717695040167,-500.0,0.00025205,2]
[328680786,1717695040177,-500.0,0.00025205,2]
[328680787,1717695040193,-500.0,0.00025205,2]
[328680788,1717695040204,-500.0,0.00025205,2]
[328680789,1717695040215,-1566.44,0.00025205,2]
[328680790,1717695040226,-865.93,0.00025205,2]
[328680791,1717695040236,-602.09,0.00025205,2]
[328680792,1717695040247,-1171.78,0.00025205,2]
[328680793,1717695040258,-263.30038166,0.00025205,2]
[328680794,1717695040271,-4107.06423704,0.00025287,2]
[328680796,1717695040281,-897.86598448,0.00025422,2]